bitfinex/quotes_SOLUSD_20240625
["timestamp","ask_amount","ask_price","bid_price","bid_amount"]
[1719278284458,100.0,132.27,132.26,23.8166]
[1719278285858,100.0,132.27,132.26,17.0119]
[1719278286163,100.0,132.27,132.26,23.8166]
[1719278286761,100.0,132.24,132.23,17.015]
[1719278286957,100.0,132.21,132.2,414.227]
[1719278288042,100.0,132.23,132.22,6.8068]
[1719278294961,100.0,132.21,132.2,17.0192]
[1719278295141,100.0,132.21,132.2,23.827]
[1719278297141,100.0,132.23,132.22,6.8068]
[1719278298542,100.0,132.27,132.26,23.8166]
[1719278298842,100.0,132.29,132.28,6.8037]
[1719278299243,100.0,132.29,132.27,6.8041]
[1719278301162,100.0,132.29,132.26,23.8165]
[1719278301559,100.0,132.27,132.26,23.8165]
[1719278301957,100.0,132.27,132.26,17.0119]
[1719278302568,100.0,132.27,132.26,23.8166]
[1719278304473,100.0,132.27,132.22,34.032]
[1719278304675,100.0,132.24,132.23,17.0149]
[1719278304847,100.0,132.24,132.23,23.8212]
[1719278308876,100.0,132.26,132.25,23.8175]
[1719278310274,100.0,132.26,132.24,6.8056]
[1719278310580,100.0,132.23,132.22,23.8225]
[1719278323160,100.0,132.24,132.22,17.0161]
[1719278324382,100.0,132.24,132.23,6.8063]
[1719278325581,109.62,132.24,132.22,23.8228]
[1719278326479,100.0,132.24,132.22,23.8228]
[1719278327868,100.0,132.27,132.2,9.62]
[1719278328074,100.0,132.27,132.25,6.8048]
[1719278328075,109.62,132.27,132.25,6.8048]
[1719278328680,100.0,132.27,132.24,17.0137]
[1719278328887,9.62,132.28,132.24,17.0137]
[1719278329088,100.0,132.27,132.26,6.8047]
[1719278330299,100.0,132.27,132.25,6.8051]
[1719278330983,100.0,132.25,132.22,16.1837]
[1719278331173,100.0,132.23,132.21,17.0179]
[1719278331371,100.0,132.23,132.21,23.8247]
[1719278333585,100.0,132.23,132.22,6.8068]
[1719278336274,100.0,132.26,132.24,6.8054]
[1719278336480,100.0,132.26,132.25,6.8052]
[1719278336980,100.0,132.26,132.24,6.8057]
[1719278340301,100.0,132.26,132.25,6.8052]
[1719278340485,6.8028,132.3,132.2,428.39437484]
[1719278340486,100.0,132.3,132.26,17.0119]
[1719278341195,100.0,132.3,132.28,23.8125]
[1719278342218,100.0,132.3,132.28,17.009]
[1719278344517,100.0,132.26,132.25,23.8171]
[1719278344881,100.0,132.28,132.26,6.8044]
[1719278345110,100.0,132.28,132.27,6.8042]
[1719278345982,100.0,132.3,132.28,6.8036]
[1719278346199,100.0,132.3,132.29,6.8032]
[1719278346400,100.0,132.32,132.3,6.8027]
[1719278346598,100.0,132.35,132.27,390.4]
[1719278346797,100.0,132.33,132.32,6.8012]
[1719278347109,100.0,132.33,132.32,6.8015]
[1719278347806,100.0,132.33,132.31,23.8068]
[1719278348682,100.0,132.33,132.32,6.8016]
[1719278349184,100.0,132.37,132.33,17.0022]
[1719278349494,100.0,132.39,132.3,428.37087484]
[1719278350002,100.0,132.39,132.3,424.4132]
[1719278350204,100.0,132.37,132.3,424.4132]
[1719278350409,100.0,132.37,132.3,428.37087484]
[1719278350910,100.0,132.37,132.36,6.7996]
[1719278351081,100.0,132.37,132.35,23.7996]
[1719278352300,100.0,132.37,132.36,6.7996]
[1719278355300,100.0,132.37,132.35,16.9996]
[1719278355499,100.0,132.37,132.35,23.7996]
[1719278356999,100.0,132.37,132.36,6.7996]
[1719278359523,100.0,132.37,132.32,17.0037]
[1719278359713,100.0,132.37,132.35,6.8]
[1719278360612,100.0,132.35,132.34,23.8017]
[1719278360812,109.61,132.35,132.34,23.8017]
[1719278361321,100.0,132.33,132.31,6.8017]
[1719278361711,109.61,132.33,132.31,6.8017]
[1719278362599,100.0,132.33,132.31,6.8017]
[1719278363999,100.0,132.31,132.3,407.4056]
[1719278364197,100.0,132.31,132.3,23.8083]
[1719278364896,100.0,132.31,132.3,17.0056]
[1719278365229,100.0,132.28,132.26,397.2043]
[1719278365599,100.0,132.28,132.27,6.8042]
[1719278368508,100.0,132.28,132.26,23.8157]
[1719278368827,100.0,132.28,132.27,6.8042]
[1719278369321,100.0,132.28,132.26,23.8158]
[1719278369629,100.0,132.28,132.27,6.8042]
[1719278372131,100.0,132.3,132.29,6.8032]
[1719278372817,100.0,132.32,132.28,17.0087]
[1719278373020,100.0,132.29,132.28,23.8124]
[1719278373420,100.0,132.29,132.28,17.0087]
[1719278374132,100.0,132.27,132.25,17.0123]
[1719278374625,100.0,132.27,132.26,6.8047]
[1719278376429,100.0,132.27,132.25,23.8175]
[1719278378927,100.0,132.27,132.26,6.8047]
[1719278380928,100.0,132.29,132.25,17.0123]
[1719278381236,100.0,132.29,132.28,6.8037]
[1719278381409,100.0,132.29,132.27,23.8144]
[1719278381613,100.0,132.29,132.27,17.0102]
[1719278382033,100.0,132.27,132.26,6.8046]
[1719278383423,109.62,132.29,132.27,6.8041]
[1719278384341,100.0,132.29,132.28,6.8037]
[1719278384523,100.0,132.31,132.29,17.008]
[1719278384731,109.62,132.31,132.3,6.8027]
[1719278384924,100.0,132.31,132.3,6.8027]
[1719278385122,100.0,132.31,132.29,23.8112]
[1719278385337,100.0,132.31,132.27,9.62]
[1719278385338,100.0,132.29,132.26,17.0113]
[1719278385519,100.0,132.29,132.27,6.8042]
[1719278385721,100.0,132.27,132.26,23.8159]
[1719278386322,100.0,132.31,132.29,17.0079]
[1719278386537,109.62,132.31,132.29,17.0079]
[1719278386738,109.62,132.31,132.29,23.8109]
[1719278386945,109.62,132.31,132.29,17.0079]
[1719278388034,109.62,132.31,132.29,23.8111]
[1719278388719,109.62,132.31,132.29,17.0079]
[1719278389119,109.62,132.31,132.3,6.8027]
[1719278389437,109.62,132.31,132.29,23.811]
[1719278394426,100.0,132.29,132.27,6.8038]
[1719278394626,109.62,132.29,132.27,6.8038]
[1719278394821,109.62,132.29,132.28,6.8037]
[1719278395141,100.0,132.29,132.26,17.0112]
[1719278396337,100.0,132.27,132.26,23.8154]
[1719278398533,109.62,132.27,132.24,6.8054]
[1719278398721,9.62,132.26,132.24,6.8054]
[1719278399331,9.62,132.26,132.25,6.8052]
[1719278400233,100.0,132.27,132.25,6.8052]
[1719278400431,109.62,132.27,132.26,6.8047]
[1719278402551,109.62,132.27,132.25,23.8176]
[1719278403342,100.0,132.25,132.24,6.8057]
[1719278407946,100.0,132.29,132.27,6.8041]
[1719278408239,109.62,132.29,132.27,6.8041]
[1719278408756,109.62,132.29,132.26,17.0119]
[1719278408757,9.62,132.28,132.26,23.8165]
[1719278409239,100.0,132.29,132.26,17.0119]
[1719278409440,100.0,132.29,132.27,6.8039]
[1719278409441,109.62,132.29,132.27,6.8039]
[1719278409652,100.0,132.31,132.28,17.0089]
[1719278409940,9.62,132.3,132.29,6.8031]
[1719278410140,109.62,132.31,132.29,6.8031]
[1719278410349,109.62,132.31,132.3,6.8027]
[1719278410560,22.17660995,132.34,132.28,17.0089]
[1719278410561,100.0,132.33,132.31,6.8021]
[1719278410866,9.62,132.32,132.31,6.8021]
[1719278411248,100.0,132.31,132.3,17.0061]
[1719278411444,109.62,132.31,132.3,17.0061]
[1719278411964,109.62,132.31,132.3,23.8088]
[1719278412166,109.62,132.31,132.28,6.8034]
[1719278412167,100.0,132.29,132.28,6.8034]
[1719278412369,100.0,132.29,132.28,6.8037]
[1719278412559,109.62,132.29,132.27,23.8141]
[1719278412896,9.62,132.28,132.27,23.8141]
[1719278413843,109.62,132.29,132.27,23.8141]
[1719278414345,109.62,132.29,132.28,6.8037]
[1719278414772,109.62,132.29,132.27,17.0099]
[1719278414941,109.62,132.29,132.27,23.8141]
[1719278415449,109.62,132.29,132.27,17.0099]
[1719278415638,9.62,132.28,132.27,17.0099]
[1719278416982,9.62,132.28,132.27,23.8141]
[1719278417276,109.62,132.29,132.28,6.8037]
[1719278417642,100.0,132.29,132.28,6.8037]
[1719278418259,109.62,132.29,132.27,23.814]
[1719278418675,109.62,132.29,132.28,6.8037]
[1719278418845,109.62,132.29,132.27,17.0099]
[1719278419048,109.62,132.29,132.27,23.814]
[1719278420279,100.0,132.27,132.26,6.8046]
[1719278420975,106.8019,132.32,132.24,17.0136]
[1719278420976,100.0,132.25,132.24,17.0136]
[1719278421175,100.0,132.23,132.22,6.8064]
[1719278421780,100.0,132.23,132.2,37.99899939]
[1719278421781,100.0,132.21,132.18,42.39839939]
[1719278422078,100.0,132.21,132.2,6.8078]
[1719278422276,100.0,132.25,132.2,17.0193]
[1719278422475,9.62,132.24,132.22,6.8064]
[1719278422648,100.0,132.23,132.22,6.8064]
[1719278426584,100.0,132.23,132.21,6.8071]
[1719278427899,100.0,132.25,132.22,17.0162]
[1719278428066,100.0,132.29,132.23,9.62]
[1719278428372,9.62,132.28,132.27,6.8042]
[1719278429160,9.62,132.28,132.26,23.8161]
[1719278429354,100.0,132.29,132.26,23.8161]
[1719278429553,9.62,132.28,132.26,23.8161]
[1719278429964,109.62,132.29,132.26,23.8161]
[1719278431177,100.0,132.27,132.26,23.8161]
[1719278433784,100.0,132.24,132.23,17.0149]
[1719278433991,100.0,132.24,132.23,23.8212]
[1719278434580,100.0,132.24,132.23,17.0149]
[1719278435174,100.0,132.24,132.23,23.8212]
[1719278436278,9.62,132.25,132.23,23.8212]
[1719278436577,100.0,132.24,132.23,23.8212]
[1719278436879,100.0,132.24,132.23,17.0149]
[1719278437259,100.0,132.24,132.23,23.8212]
[1719278439060,100.0,132.24,132.23,17.0149]
[1719278439761,109.62,132.28,132.23,26.6349]
[1719278439981,109.62,132.28,132.25,6.8052]
[1719278440990,100.0,132.26,132.24,6.8056]
[1719278443175,100.0,132.22,132.21,6.8073]
[1719278445672,9.62,132.25,132.23,6.8063]
[1719278445673,100.0,132.24,132.23,6.8063]
[1719278445891,38.48,132.3,132.24,6.8055]
[1719278445892,100.0,132.26,132.24,6.8055]
[1719278447370,109.62,132.26,132.24,6.8055]
[1719278449094,109.62,132.26,132.25,6.8052]
[1719278449298,100.0,132.26,132.25,6.8052]
[1719278449691,100.0,132.26,132.24,23.8195]
[1719278451494,100.0,132.31,132.24,23.8195]
[1719278451495,100.0,132.28,132.25,6.8052]
[1719278451690,100.0,132.28,132.26,6.8047]
[1719278452920,100.0,132.26,132.25,6.8051]
[1719278455386,100.0,132.26,132.24,33.4395]
[1719278455580,100.0,132.26,132.24,23.8195]
[1719278455814,100.0,132.26,132.25,6.8052]
[1719278460585,100.0,132.28,132.26,6.8047]
[1719278461797,100.0,132.3,132.26,17.0117]
[1719278462001,100.0,132.32,132.28,9.62]
[1719278462221,100.0,132.34,132.32,6.8012]
[1719278462524,100.0,132.38,132.35,6.7996]
[1719278462892,100.0,132.38,132.36,6.7995]
[1719278463316,100.0,132.41,132.37,6.7991]
[1719278463521,109.62,132.41,132.37,6.7991]
[1719278463690,109.62,132.41,132.36,23.798]
[1719278463691,9.62,132.4,132.36,23.798]
[1719278464090,100.0,132.41,132.36,23.798]
[1719278464296,100.36210995,132.43,132.38,16.9959]
[1719278464497,100.0,132.43,132.38,16.9959]
[1719278464698,100.0,132.43,132.39,6.798]
[1719278464902,100.0,132.41,132.39,6.798]
[1719278465794,100.0,132.41,132.38,23.7944]
[1719278466221,100.0,132.41,132.38,16.9959]
[1719278466407,100.0,132.41,132.38,23.7944]
[1719278466909,100.0,132.39,132.38,16.9959]
[1719278467086,100.0,132.39,132.36,6.7996]
[1719278467286,100.0,132.37,132.35,23.7997]
[1719278467795,100.0,132.35,132.33,6.8009]
[1719278468108,100.0,132.39,132.36,6.7996]
[1719278469425,100.0,132.37,132.36,6.7996]
[1719278469798,100.0,132.39,132.37,6.799]
[1719278470118,100.0,132.39,132.36,6.7995]
[1719278472698,100.0,132.37,132.35,6.8]
[1719278473129,100.0,132.35,132.31,38.5136]
[1719278473692,100.0,132.35,132.32,6.8016]
[1719278474200,100.0,132.35,132.33,6.8011]
[1719278474728,100.0,132.33,132.32,6.8015]
[1719278475025,100.0,132.31,132.3,6.8026]
[1719278475396,100.0,132.31,132.29,6.803]
[1719278475695,100.0,132.31,132.3,6.8027]
[1719278479727,100.0,132.33,132.32,23.8056]
[1719278480299,100.0,132.33,132.32,17.004]
[1719278480723,100.0,132.33,132.31,6.802]
[1719278481133,100.0,132.33,132.3,6.8026]
[1719278481426,100.0,132.33,132.29,17.0073]
[1719278482513,100.0,132.33,132.3,6.8025]
[1719278483102,100.0,132.31,132.3,6.8025]
[1719278485647,100.0,132.26,132.25,6.8049]
[1719278486131,100.0,132.29,132.23,6.0341]
[1719278486339,100.0,132.29,132.28,6.8037]
[1719278489021,100.0,132.29,132.27,23.814]
[1719278489420,100.0,132.26,132.25,6.8048]
[1719278491139,100.0,132.26,132.24,17.0138]
[1719278491440,100.0,132.24,132.23,6.8063]
[1719278494920,100.0,132.26,132.21,34.0362]
[1719278495131,100.0,132.28,132.21,34.0362]
[1719278495342,100.0,132.28,132.27,6.8042]
[1719278495638,100.0,132.3,132.28,6.8034]
[1719278495844,100.0,132.28,132.26,17.0108]
[1719278496222,100.0,132.28,132.26,23.8155]
[1719278497824,100.0,132.28,132.27,6.8042]
[1719278498528,100.0,132.28,132.26,23.8154]
[1719278500341,100.0,132.28,132.27,6.8042]
[1719278501746,100.0,132.28,132.26,23.8154]
[1719278502127,100.0,132.3,132.28,17.009]
[1719278502820,109.62,132.3,132.28,17.009]
[1719278503020,100.0,132.28,132.26,6.8046]
[1719278503443,100.0,132.28,132.25,39.4963]
[1719278503634,100.0,132.28,132.27,6.8042]
[1719278504036,100.0,132.28,132.26,6.8046]
[1719278504747,100.0,132.26,132.25,17.0123]
[1719278504950,100.0,132.26,132.25,23.8175]
[1719278508250,100.0,132.28,132.26,6.8044]
[1719278508443,100.0,132.28,132.25,17.0123]
[1719278508444,100.0,132.28,132.27,6.8042]
[1719278508841,100.0,132.3,132.28,6.8037]
[1719278509040,100.0,132.32,132.29,6.8032]
[1719278509465,100.0,132.32,132.28,6.8036]
[1719278509653,100.0,132.3,132.28,6.8036]
[1719278509854,100.0,132.25,132.24,17.0139]
[1719278512769,100.0,132.25,132.24,17.0139]
[1719278512946,100.0,132.23,132.22,6.8067]
[1719278514463,100.0,132.25,132.23,6.8062]
[1719278514662,100.0,132.25,132.24,6.8058]
[1719278515454,15.674,132.29,132.25,6.8052]
[1719278515455,115.674,132.29,132.25,6.8052]
[1719278516568,100.0,132.27,132.25,6.8052]
[1719278517173,100.0,132.27,132.24,6.8056]
[1719278517748,100.0,132.27,132.23,23.8211]
[1719278519568,100.0,132.27,132.24,6.8057]
[1719278521472,7.85451164,132.31,132.22,6.6558]
[1719278521656,115.4844,132.32,132.27,6.8041]
[1719278521856,100.0,132.3,132.27,6.8041]
[1719278522062,100.0,132.3,132.28,6.8037]
[1719278522269,100.0,132.32,132.25,405.8436]
[1719278522451,100.0,132.32,132.29,23.8107]
[1719278523855,100.0,132.35,132.28,6.6428]
[1719278524073,100.0,132.35,132.32,6.8013]
[1719278524368,100.0,132.35,132.31,17.0049]
[1719278524669,100.0,132.39,132.33,17.0024]
[1719278524873,100.0,132.35,132.33,23.803]
[1719278525075,100.0,132.35,132.31,23.1739]
[1719278527355,100.0,132.35,132.32,6.8015]
[1719278528168,100.0,132.33,132.31,6.8021]
[1719278528375,100.0,132.31,132.29,6.8032]
[1719278528673,100.0,132.31,132.28,13.4464]
[1719278528877,100.0,132.29,132.27,23.8139]
[1719278529059,45.2396,132.36,132.29,17.0073]
[1719278529060,100.0,132.31,132.29,17.0073]
[1719278529263,100.0,132.33,132.29,17.0073]
[1719278529467,116.3796,132.36,132.32,6.8012]
[1719278529671,100.0,132.36,132.33,6.801]
[1719278530377,100.0,132.36,132.32,6.8016]
[1719278530770,100.0,132.33,132.31,23.8069]
[1719278531573,100.0,132.31,132.28,17.0087]
[1719278532876,100.0,132.31,132.28,23.8123]
[1719278533176,100.0,132.29,132.28,23.8123]
[1719278533387,100.0,132.35,132.3,17.006]
[1719278533568,100.0,132.35,132.32,6.8013]
[1719278533877,100.0,132.33,132.3,23.8082]
[1719278534263,100.0,132.29,132.27,17.01]
[1719278534469,100.0,132.29,132.28,6.8037]
[1719278536873,100.0,132.29,132.27,17.01]
[1719278537775,100.0,132.29,132.27,23.8141]
[1719278537992,100.0,132.27,132.26,6.8046]
[1719278538362,100.0,132.27,132.25,6.8051]
[1719278540281,100.0,132.27,132.26,6.8047]
[1719278541890,100.0,132.3,132.24,23.819]
[1719278541891,100.0,132.25,132.24,23.819]
[1719278542677,100.0,132.25,132.24,17.0137]
[1719278544273,100.0,132.25,132.24,23.8195]
[1719278545869,100.0,132.25,132.24,17.0137]
[1719278546693,100.0,132.25,132.23,6.8061]
[1719278548286,100.0,132.23,132.22,6.8066]
[1719278548688,100.0,132.25,132.24,6.8058]
[1719278548893,109.62,132.27,132.25,6.8052]
[1719278549195,109.62,132.27,132.24,6.8056]
[1719278549878,100.0,132.29,132.25,6.805]
[1719278550078,109.62,132.29,132.26,6.8047]
[1719278550895,100.0,132.25,132.23,6.8061]
[1719278551800,100.0,132.25,132.22,23.8233]
[1719278551973,100.0,132.25,132.22,33.4433]
[1719278552173,100.0,132.25,132.23,6.8063]
[1719278554814,100.0,132.25,132.24,6.8058]
[1719278555306,100.0,132.25,132.23,6.8061]
[1719278555472,100.0,132.23,132.22,17.0166]
[1719278555878,100.0,132.23,132.22,23.823]
[1719278556888,38.48,132.3,132.26,6.8047]
[1719278556889,100.0,132.3,132.26,6.8047]
[1719278557207,9.62,132.29,132.24,17.0138]
[1719278557394,109.62,132.28,132.24,17.0138]
[1719278558889,9.62,132.27,132.24,23.8194]
[1719278559087,9.62,132.27,132.24,17.0138]
[1719278559278,100.0,132.23,132.21,17.0179]
[1719278559887,100.0,132.23,132.22,6.8068]
[1719278562598,100.0,132.27,132.23,23.8214]
[1719278562917,100.0,132.25,132.23,23.8215]
[1719278563219,100.0,132.25,132.22,16.4268]
[1719278563386,100.0,132.25,132.22,6.8068]
[1719278563985,100.0,132.25,132.23,23.8215]
[1719278564413,109.62,132.27,132.23,23.8215]
[1719278565297,100.0,132.27,132.23,23.8215]
[1719278565606,109.62,132.27,132.23,23.8215]
[1719278565984,100.0,132.21,132.19,22.6365]
[1719278567383,100.0,132.19,132.18,6.8085]
[1719278568507,100.0,132.21,132.19,6.8081]
[1719278569110,100.0,132.22,132.19,26.6397]
[1719278569310,100.0,132.22,132.2,6.8078]
[1719278569610,100.0,132.22,132.19,23.8279]
[1719278572106,9.62,132.23,132.16,21.939451]
[1719278572107,100.0,132.19,132.16,21.939451]
[1719278572285,100.0,132.19,132.17,6.8092]
[1719278572503,100.0,132.23,132.18,17.0217]
[1719278572830,100.0,132.21,132.18,17.0217]
[1719278573115,100.0,132.21,132.18,23.8302]
[1719278573691,100.0,132.21,132.19,6.8082]
[1719278574492,100.0,132.21,132.18,23.8304]
[1719278574695,100.0,132.19,132.18,23.8304]
[1719278578632,109.62,132.21,132.19,6.8083]
[1719278578811,109.62,132.21,132.2,6.8078]
[1719278579319,109.62,132.21,132.19,6.8082]
[1719278579527,100.0,132.21,132.19,6.8082]
[1719278579705,100.0,132.23,132.2,6.8078]
[1719278579899,109.62,132.23,132.2,6.8078]
[1719278580912,100.0,132.23,132.2,6.8078]
[1719278581108,109.62,132.23,132.2,6.8078]
[1719278581428,109.62,132.23,132.2,23.8261]
[1719278582313,9.62,132.22,132.2,23.8261]
[1719278583318,100.0,132.21,132.2,17.0184]
[1719278583709,109.62,132.21,132.2,17.0184]
[1719278584017,100.0,132.19,132.18,6.8088]
[1719278584420,100.0,132.19,132.17,23.8321]
[1719278586126,100.0,132.19,132.18,6.8088]
[1719278587824,109.62,132.21,132.19,6.8081]
[1719278589117,100.0,132.21,132.19,6.8081]
[1719278589316,100.0,132.21,132.17,17.0228]
[1719278589517,100.0,132.21,132.19,6.808]
[1719278589729,109.62,132.21,132.19,6.808]
[1719278592206,100.0,132.18,132.16,4.914951]
[1719278592614,9.62,132.17,132.16,11.724851]
[1719278592816,100.0,132.18,132.16,11.724851]
[1719278593015,109.62,132.18,132.16,11.724851]
[1719278593434,9.62,132.17,132.16,11.724851]
[1719278593836,9.62,132.17,132.16,4.914951]
[1719278598441,100.0,132.18,132.16,4.914951]
[1719278598742,9.62,132.17,132.16,11.724851]
[1719278600917,100.0,132.2,132.16,21.938951]
[1719278601120,9.62,132.19,132.18,6.8088]
[1719278601321,100.0,132.18,132.16,28.748651]
[1719278601526,109.62,132.18,132.16,4.914951]
[1719278602040,9.62,132.17,132.16,4.914951]
[1719278606637,94.73773436,132.17,132.16,4.914951]
[1719278606820,100.16298849,132.17,132.16,4.914951]
[1719278607022,100.0,132.11,132.09,6.8134]
[1719278607331,100.0,132.11,132.1,6.813]
[1719278608139,100.0,132.11,132.09,23.8466]
[1719278608750,109.62,132.11,132.09,23.8466]
[1719278609535,9.62,132.1,132.09,17.0333]
[1719278611243,100.0,132.09,132.08,6.8139]
[1719278612722,100.0,132.07,132.06,23.8519]
[1719278613120,109.62,132.07,132.03,17.0406]
[1719278613341,109.62,132.07,132.05,6.8155]
[1719278613863,109.62,132.07,132.04,6.816]
[1719278614146,109.62,132.07,132.06,23.8527]
[1719278614456,100.0,132.07,132.06,23.8527]
[1719278614740,109.62,132.07,132.06,23.8527]
[1719278615044,109.62,132.07,132.06,17.0377]
[1719278616140,109.62,132.07,132.06,23.8527]
[1719278616343,100.0,132.07,132.06,23.8527]
[1719278617727,100.0,132.09,132.07,6.8142]
[1719278618548,100.0,132.09,132.06,23.8526]
[1719278618847,100.0,132.07,132.06,23.8526]
[1719278621735,100.0,132.11,132.06,17.0377]
[1719278622049,100.0,132.11,132.09,9.62]
[1719278622242,100.0,132.11,132.1,6.813]
[1719278622444,100.0,132.11,132.09,6.8133]
[1719278623747,100.0,132.09,132.05,17.038]
[1719278623955,100.0,132.07,132.05,23.8531]
[1719278624134,100.0,132.07,132.06,6.815]
[1719278625849,100.0,132.09,132.07,6.8145]
[1719278626253,100.0,132.11,132.08,6.814]
[1719278626634,100.0,132.09,132.07,33.4703]
[1719278626828,100.0,132.11,132.07,33.4703]
[1719278627227,100.0,132.11,132.08,6.8139]
[1719278627451,100.0,132.11,132.08,16.4339]
[1719278627631,100.0,132.11,132.08,6.8139]
[1719278628552,100.0,132.11,132.09,9.62]
[1719278628732,100.0,132.13,132.09,16.4333]
[1719278630228,100.0,132.13,132.1,6.8128]
[1719278630439,116.4308,132.15,132.1,16.4328]
[1719278630934,100.0,132.12,132.1,9.62]
[1719278631449,100.0,132.12,132.09,26.6532]
[1719278631653,100.0,132.1,132.09,26.6532]
[1719278631854,100.0,132.1,132.09,17.0332]
[1719278632044,100.0,132.1,132.09,26.6532]
[1719278633030,100.0,132.1,132.07,21.4347]
[1719278633248,100.0,132.1,132.07,9.62]
[1719278633448,100.0,132.1,132.08,6.814]
[1719278633843,100.0,132.1,132.08,16.434]
[1719278634037,100.0,132.08,132.06,17.0371]
[1719278634257,100.0,132.08,132.06,26.6571]
[1719278634642,100.0,132.08,132.06,33.4721]
[1719278634843,100.0,132.08,132.06,23.852]
[1719278635153,100.0,132.08,132.06,33.472]
[1719278635353,100.0,132.08,132.07,16.4345]
[1719278636461,100.0,132.1,132.08,6.8139]
[1719278636773,100.0,132.1,132.08,16.4339]
[1719278637560,100.0,132.12,132.08,16.4339]
[1719278637757,100.0,132.12,132.09,9.62]
[1719278638356,100.0,132.12,132.08,6.8139]
[1719278638554,100.0,132.12,132.09,9.62]
[1719278639850,100.0,132.12,132.1,9.62]
[1719278643365,100.0,132.16,132.11,9.62]
[1719278643547,100.0,132.16,132.14,9.62]
[1719278644367,100.0,132.16,132.13,9.62]
[1719278644754,100.0,132.16,132.14,9.62]
[1719278644951,100.0,132.16,132.13,9.62]
[1719278645149,100.0,132.16,132.09,21.5679]
[1719278645150,100.0,132.12,132.09,21.5679]
[1719278645355,100.0,132.12,132.1,9.62]
[1719278645561,100.0,132.12,132.09,21.5679]
[1719278645562,100.0,132.14,132.11,9.62]
[1719278645753,100.0,132.14,132.12,9.62]
[1719278646256,100.0,132.14,132.11,400.02]
[1719278647464,100.0,132.12,132.11,400.02]
[1719278647665,100.0,132.12,132.11,390.4]
[1719278649647,100.0,132.12,132.11,400.02]
[1719278649856,100.0,132.12,132.11,390.4]
[1719278651862,100.0,132.12,132.1,33.465]
[1719278652571,100.0,132.12,132.11,6.8125]
[1719278654546,100.0,132.16,132.12,17.0291]
[1719278654847,100.0,132.16,132.14,9.62]
[1719278655050,100.0,132.16,132.12,17.0291]
[1719278655051,100.0,132.14,132.13,9.62]
[1719278655567,100.0,132.14,132.13,16.4314]
[1719278655749,100.0,132.16,132.13,16.4314]
[1719278655952,100.0,132.16,132.13,6.8114]
[1719278656561,100.0,132.16,132.13,16.4314]